bitfinex-derivatives/quotes_BTCF0:USTF0_20251204
["timestamp","ask_amount","ask_price","bid_price","bid_amount"]
[1764857875313,0.07123542,92711.0,92710.0,0.0670554]
[1764857875815,0.10803,92711.0,92710.0,0.0670554]
[1764857876008,0.09803,92711.0,92710.0,0.0670554]
[1764857876507,0.05803,92704.0,92703.0,0.01194801]
[1764857876707,0.06045002,92704.0,92703.0,0.04018801]
[1764857876908,0.06045002,92704.0,92703.0,0.06821801]
[1764857877413,0.03236002,92704.0,92703.0,0.56821801]
[1764857877623,0.47125002,92704.0,92703.0,0.51194801]
[1764857877811,0.47125002,92704.0,92703.0,0.50116181]
[1764857878304,0.47125002,92704.0,92703.0,0.50016181]
[1764857878514,0.56125002,92704.0,92703.0,0.50016181]
[1764857879014,0.56125002,92704.0,92703.0,0.00016181]
[1764857880218,0.56225002,92704.0,92703.0,0.00016181]
[1764857880812,0.02994,92688.0,92687.0,0.06695361]
[1764857881120,0.05803,92688.0,92687.0,0.0670581]
[1764857881612,0.10803,92688.0,92687.0,0.0670581]
[1764857881813,0.05803,92688.0,92687.0,0.0670581]
[1764857882209,0.10803,92688.0,92687.0,0.0137881]
[1764857882723,0.09803,92688.0,92687.0,0.0420281]
[1764857883015,0.09803,92688.0,92687.0,0.0430281]
[1764857883225,0.09803,92688.0,92687.0,0.004]
[1764857883415,0.10803,92688.0,92687.0,0.004]
[1764857883918,0.05803,92688.0,92687.0,0.004]
[1764857884124,0.10803,92688.0,92687.0,0.004]
[1764857886515,0.05803,92688.0,92687.0,0.05991]
[1764857886811,0.10803,92688.0,92687.0,0.05991]
[1764857887017,0.09803,92688.0,92687.0,0.004]
[1764857889512,0.05699,92679.0,92678.0,0.00016181]
[1764857889819,0.93179902,92679.0,92678.0,0.00016181]
[1764857890023,0.0387304,92669.0,92668.0,0.0386802]
[1764857890217,0.1177804,92669.0,92668.0,0.0667002]
[1764857890415,0.02905,92669.0,92668.0,0.0667002]
[1764857890814,0.732389,92679.0,92678.0,0.05591]
[1764857891023,0.829379,92679.0,92678.0,0.05591]
[1764857891316,0.840379,92679.0,92678.0,0.06091]
[1764857891725,0.0677796,92674.0,92673.0,0.0666996]
[1764857891912,0.0107901,92670.0,92669.0,0.00016181]
[1764857892117,0.43100012,92670.0,92669.0,0.02818181]
[1764857892318,0.47100012,92670.0,92669.0,0.02818181]
[1764857892616,0.47100012,92670.0,92669.0,0.00016181]
[1764857893619,0.47100012,92670.0,92669.0,0.00216181]
[1764857893819,0.48100012,92670.0,92669.0,0.00216181]
[1764857894020,0.43200012,92670.0,92669.0,0.00816181]
[1764857894217,0.57200012,92670.0,92669.0,0.00816181]
[1764857894418,0.47200012,92670.0,92669.0,0.00816181]
[1764857894722,0.43200012,92670.0,92669.0,0.06407181]
[1764857894920,0.05799,92670.0,92669.0,0.06407181]
[1764857895121,0.03005,92670.0,92669.0,0.06407181]
[1764857895422,0.001,92670.0,92669.0,0.06407181]
[1764857897827,0.05799,92670.0,92669.0,0.06407181]
[1764857899326,0.03005,92670.0,92669.0,0.06407181]
[1764857899717,0.001,92670.0,92669.0,0.06407181]
[1764857900226,0.3608,92678.0,92677.0,0.0666992]
[1764857901122,0.36096181,92688.0,92687.0,0.0829681]
[1764857901521,0.00016181,92688.0,92687.0,0.4437681]
[1764857902228,0.00016181,92688.0,92687.0,0.48248171]
[1764857902421,0.00016181,92688.0,92687.0,0.48348171]
[1764857902621,0.00016181,92688.0,92687.0,0.48448171]
[1764857903023,0.00116181,92688.0,92687.0,0.48748171]
[1764857903427,0.00116181,92688.0,92687.0,0.4487681]
[1764857903929,0.00116181,92688.0,92687.0,0.9487681]
[1764857905530,0.0353,92700.0,92699.0,0.0666967]
[1764857905719,0.3608,92706.0,92705.0,0.066696]
[1764857909029,0.3608,92706.0,92705.0,0.067696]
[1764857910035,0.3608,92714.0,92713.0,0.0107851]
[1764857910330,0.3608,92714.0,92713.0,0.0666951]
[1764857911023,0.3618,92714.0,92713.0,0.0666951]
[1764857911331,0.39085,92714.0,92713.0,0.0666951]
[1764857911729,0.41879,92714.0,92713.0,0.0666951]
[1764857911931,0.46879,92714.0,92713.0,0.0388051]
[1764857912425,0.46879,92714.0,92713.0,0.0666951]
[1764857913026,0.41879,92714.0,92713.0,0.0666951]
[1764857914132,0.3618,92714.0,92713.0,0.0666951]
[1764857915027,0.4118,92714.0,92713.0,0.0666951]
[1764857915232,0.3618,92714.0,92713.0,0.0666951]
[1764857916332,0.39116,92714.0,92713.0,0.0666951]
[1764857916537,0.46891,92714.0,92713.0,0.0666951]
[1764857916934,0.46891,92714.0,92713.0,0.0107851]
[1764857917124,0.45891,92714.0,92713.0,0.0107851]
[1764857917329,0.46891,92714.0,92713.0,0.0399451]
[1764857917529,0.46891,92714.0,92713.0,0.0698251]
[1764857919338,0.41891,92714.0,92713.0,0.0698251]
[1764857919532,0.46891,92714.0,92713.0,0.0698251]
[1764857919732,0.41891,92714.0,92713.0,0.0698251]
[1764857920640,0.3618,92714.0,92713.0,0.0698251]
[1764857921434,0.39116,92714.0,92713.0,0.0698251]
[1764857923439,0.41891,92714.0,92713.0,0.0698251]
[1764857923637,0.39116,92714.0,92713.0,0.0698251]
[1764857923839,0.3618,92714.0,92713.0,0.0698251]
[1764857925446,0.38888,92714.0,92713.0,0.0698251]
[1764857925946,0.3618,92714.0,92713.0,0.0698251]
[1764857929347,0.38888,92714.0,92713.0,0.0698251]
[1764857929647,0.41698,92714.0,92713.0,0.0698251]
[1764857930349,0.41698,92714.0,92713.0,0.10851398]
[1764857931053,0.38888,92714.0,92713.0,0.10851398]
[1764857931238,0.3618,92714.0,92713.0,0.0698251]
[1764857931440,0.3618,92714.0,92713.0,0.12789551]
[1764857931643,0.001,92714.0,92713.0,0.0698251]
[1764857931836,1e-08,92715.0,92713.0,0.14739959]
[1764857932036,0.00026961,92726.0,92725.0,0.0669237]
[1764857932736,0.05544961,92726.0,92725.0,0.0669237]
[1764857932942,0.05544961,92726.0,92725.0,0.0107837]
[1764857933451,0.05544961,92726.0,92725.0,0.0127837]
[1764857934254,0.05544961,92726.0,92725.0,0.0107837]
[1764857934443,0.05544961,92726.0,92725.0,0.0117837]
[1764857934639,0.05544961,92726.0,92725.0,0.5117837]
[1764857935052,0.05544961,92726.0,92725.0,0.55053722]
[1764857936647,0.05544961,92726.0,92725.0,0.54953722]
[1764857936842,0.05544961,92726.0,92725.0,0.55053722]
[1764857937555,0.05544961,92726.0,92725.0,0.57851722]
[1764857937744,0.05544961,92726.0,92725.0,0.60667722]
[1764857938050,0.00026961,92726.0,92725.0,0.5679237]
[1764857938248,0.38788,92734.0,92733.0,0.0669227]
[1764857938444,0.3608,92734.0,92733.0,0.0669227]
[1764857938643,0.38788,92734.0,92733.0,0.0669227]
[1764857938849,0.3608,92734.0,92733.0,0.0669227]
[1764857940256,0.41598,92734.0,92733.0,0.0669227]
[1764857941047,0.41598,92734.0,92733.0,0.5683227]
[1764857941255,0.41598,92734.0,92733.0,0.0669227]
[1764857941452,0.41598,92734.0,92733.0,0.5683227]
[1764857941856,0.3608,92734.0,92733.0,0.5683227]
[1764857942047,0.33412527,92734.0,92733.0,0.5683227]
[1764857942247,0.33412527,92734.0,92733.0,0.62645905]
[1764857942559,0.33412527,92734.0,92733.0,1.0683227]
[1764857944148,0.33412527,92734.0,92733.0,1.0682827]
[1764857944357,0.36380527,92734.0,92733.0,1.0682827]
[1764857944844,0.39159527,92734.0,92733.0,0.5669227]
[1764857945250,0.39159527,92734.0,92733.0,1.0682827]
[1764857946747,0.33412527,92734.0,92733.0,1.0682827]
[1764857946954,0.39159527,92734.0,92733.0,1.0682827]
[1764857947362,0.39159527,92734.0,92733.0,1.10693548]
[1764857948955,0.39159527,92734.0,92733.0,0.5107827]
[1764857949548,0.39159527,92734.0,92733.0,0.5]
[1764857950465,0.0682534,92727.0,92726.0,0.0107835]
[1764857950661,0.07067342,92727.0,92726.0,0.0107835]
[1764857952553,0.05747,92722.0,92721.0,0.03869278]
[1764857952859,0.05747,92717.0,92716.0,0.00016181]
[1764857953055,0.05989002,92717.0,92716.0,0.00016181]
[1764857954064,0.06089002,92717.0,92716.0,0.00016181]
[1764857954767,0.05989002,92717.0,92716.0,0.00016181]
[1764857954955,0.05747,92707.0,92706.0,0.03869278]
[1764857955160,0.0466,92704.0,92703.0,0.0107862]
[1764857955359,0.07439,92704.0,92703.0,0.0107862]
[1764857956063,0.0851762,92704.0,92703.0,0.0107862]
[1764857956368,0.0851762,92704.0,92699.0,0.03869278]
[1764857956369,0.0682566,92701.0,92700.0,0.0107865]
[1764857956962,0.05747,92701.0,92700.0,0.0393465]
[1764857957467,0.05747,92701.0,92700.0,0.5671065]
[1764857957869,0.05747,92701.0,92700.0,0.5681065]
[1764857959874,0.05747,92701.0,92700.0,0.52956]
[1764857960182,0.05747,92701.0,92700.0,0.501]
[1764857960469,0.05747,92701.0,92700.0,0.55732]
[1764857961269,0.05747,92701.0,92700.0,0.55632]
[1764857963067,0.07385,92701.0,92700.0,0.5]
[1764857963464,0.07385,92701.0,92700.0,0.501]
[1764857964268,0.07385,92701.0,92700.0,0.001]
[1764857964771,0.05747,92697.0,92696.0,0.067107]
[1764857964967,0.42069002,92697.0,92696.0,0.067107]
[1764857965166,0.43147692,92697.0,92696.0,0.067107]
[1764857966377,0.43147692,92697.0,92696.0,0.068107]
[1764857966867,0.41827,92697.0,92696.0,0.067107]
[1764857967074,0.41827,92697.0,92696.0,0.068107]
[1764857968272,0.41827,92697.0,92696.0,0.069107]
[1764857968776,0.3608,92697.0,92696.0,0.069107]
[1764857969079,0.39048,92697.0,92696.0,0.068107]
[1764857969277,0.41827,92697.0,92696.0,0.071107]
[1764857969668,0.41827,92697.0,92696.0,0.003]
[1764857969874,0.41827,92697.0,92696.0,0.0015686]
[1764857970278,0.05747,92695.0,92694.0,0.00016181]
[1764857970480,0.05989002,92695.0,92694.0,0.00016181]
[1764857972477,0.05989002,92695.0,92694.0,0.00116181]
[1764857975991,0.42069002,92695.0,92694.0,0.00116181]
[1764857976589,0.0845381,92687.0,92686.0,0.00026973]
[1764857976794,0.44775812,92687.0,92686.0,0.00026973]
[1764857977194,0.44775812,92687.0,92686.0,0.01105793]
[1764857977394,0.44775812,92687.0,92686.0,0.02904973]
[1764857977594,0.44775812,92687.0,92686.0,0.05843973]
[1764857978602,0.44775812,92687.0,92686.0,0.06922793]
[1764857979196,0.44775812,92687.0,92686.0,0.07122793]
[1764857980007,0.44775812,92687.0,92686.0,0.06043973]
[1764857980201,0.44775812,92687.0,92686.0,0.05943973]
[1764857981307,0.44775812,92687.0,92686.0,0.00226973]
[1764857981802,0.44975812,92687.0,92686.0,0.00026973]
[1764857982802,0.0663787,92682.0,92681.0,0.00011447]
[1764857983106,0.06879872,92682.0,92681.0,0.00011447]
[1764857988111,0.08523872,92682.0,92681.0,0.05509447]
[1764857988307,0.08523872,92682.0,92681.0,0.02792447]
[1764857989312,0.08523872,92682.0,92681.0,0.00011447]
[1764857989911,0.13523872,92682.0,92681.0,0.00011447]
[1764857990112,0.08523872,92682.0,92681.0,0.00011447]
[1764857990311,0.0663791,92678.0,92677.0,0.00016181]
[1764857990508,0.0828201,92670.0,92669.0,0.03869278]
[1764857990713,0.05559,92669.0,92663.0,0.04948368]
[1764857990913,0.0663808,92664.0,92663.0,0.10446368]
[1764857991114,0.06880082,92664.0,92663.0,0.0657709]
[1764857991312,0.06890609,92664.0,92663.0,0.07893305]
[1764857992209,0.06990609,92664.0,92663.0,0.08393305]
[1764857992415,0.06990609,92664.0,92663.0,0.08493305]
[1764857994906,0.08634609,92664.0,92663.0,0.04697215]
[1764857995113,0.08634609,92664.0,92663.0,0.01916215]
[1764857999421,0.07555529,92664.0,92663.0,0.01916215]
[1764857999621,0.00110527,92664.0,92663.0,0.07414215]
[1764857999826,0.3608,92670.0,92669.0,0.0657702]
[1764858000124,0.3608,92670.0,92669.0,0.10449585]
[1764858000428,0.3608,92670.0,92669.0,0.60449585]
[1764858001029,0.38934,92670.0,92669.0,0.60549585]
[1764858001526,0.3608,92670.0,92669.0,0.5667702]
[1764858001729,0.3608,92670.0,92669.0,0.5697702]
[1764858003328,0.3608,92675.0,92669.0,0.5697702]
[1764858003329,0.3608,92675.0,92674.0,0.0657696]
[1764858003530,0.41639,92690.0,92689.0,0.0657679]
[1764858003731,0.4271777,92690.0,92689.0,0.0657679]
[1764858004719,0.4291777,92690.0,92689.0,0.0657679]
[1764858006022,0.4291777,92690.0,92689.0,0.05498]
[1764858009723,0.0677985,92683.0,92682.0,0.03873611]
[1764858009936,0.05701,92682.0,92681.0,0.10615481]
[1764858010134,0.05943002,92682.0,92681.0,0.10615481]
[1764858010525,0.05943002,92682.0,92681.0,0.5674187]
[1764858011335,0.05943002,92682.0,92681.0,0.60615481]
[1764858011536,0.05943002,92682.0,92681.0,0.60715481]
[1764858012829,0.05701,92682.0,92681.0,0.60715481]
[1764858013132,0.02756,92687.0,92686.0,0.0674179]
[1764858013731,0.05701,92687.0,92686.0,0.0674179]
[1764858013938,0.3608,92690.0,92689.0,0.0674179]
[1764858014734,0.0353,92699.0,92690.0,0.05663]
[1764858015428,0.0460867,92699.0,92690.0,0.05663]
[1764858016129,0.0353,92699.0,92690.0,0.05663]
[1764858016328,0.3608,92707.0,92690.0,0.09536445]
[1764858016530,0.05717181,92691.0,92690.0,0.05663]
[1764858016929,0.05917181,92691.0,92690.0,0.05663]
[1764858017438,0.05917181,92691.0,92690.0,0.55663]
[1764858019138,0.05917181,92691.0,92690.0,0.59532662]
[1764858020429,0.05917181,92691.0,92690.0,0.55663]
[1764858023342,0.05917181,92691.0,92690.0,0.5]
[1764858023734,0.10917181,92691.0,92690.0,0.47505129]
[1764858023961,0.10917181,92691.0,92690.0,0.42665978]
[1764858024244,0.04666,92681.0,92669.0,0.0107902]
[1764858024448,0.40746,92681.0,92669.0,0.0107902]
[1764858025032,0.0574503,92668.0,92667.0,0.05663]
[1764858026350,0.0574506,92665.0,92664.0,0.02956]
[1764858026539,0.04666,92664.0,92663.0,0.01316215]
[1764858026740,0.04666,92659.0,92658.0,0.07456]
[1764858026940,0.40988002,92659.0,92658.0,0.07456]
[1764858027847,0.42067132,92659.0,92658.0,0.07456]
[1764858028053,0.42067132,92659.0,92658.0,0.08774842]
[1764858028350,0.42167132,92659.0,92658.0,0.09474842]
[1764858028647,0.42167132,92659.0,92658.0,0.09674842]
[1764858040455,0.42167132,92659.0,92658.0,0.09637842]
[1764858043962,0.42167132,92659.0,92658.0,0.02218842]
[1764858045360,0.46167132,92659.0,92658.0,0.02218842]
[1764858045566,0.42167132,92659.0,92658.0,0.02218842]
[1764858047566,0.42167132,92659.0,92658.0,0.09587842]
[1764858049971,0.4192513,92659.0,92658.0,0.09587842]
[1764858050170,0.3618,92659.0,92658.0,0.09587842]
[1764858051671,0.40846,92659.0,92658.0,0.09587842]
[1764858053171,0.3618,92659.0,92658.0,0.09587842]
[1764858054172,0.40846,92659.0,92658.0,0.09587842]
[1764858055169,0.40846,92659.0,92658.0,0.13457504]
[1764858056270,0.40846,92659.0,92658.0,0.09587842]
[1764858056475,0.3618,92659.0,92658.0,0.09587842]
[1764858057365,0.001,92659.0,92658.0,0.09587842]
[1764858060269,0.00016181,92668.0,92667.0,0.0687504]
[1764858060470,0.3608,92680.0,92679.0,0.068749]
[1764858060974,0.38413,92680.0,92679.0,0.068749]
[1764858061176,0.38413,92680.0,92679.0,0.10753343]
[1764858061368,0.3608,92680.0,92679.0,0.10753343]
[1764858061571,0.38413,92680.0,92679.0,0.068749]
[1764858061878,0.40746,92680.0,92679.0,0.068749]
[1764858063681,0.40746,92680.0,92679.0,0.070749]
[1764858064777,0.3608,92680.0,92679.0,0.070749]
[1764858065975,0.38413,92680.0,92679.0,0.070749]
[1764858066176,0.4182489,92680.0,92679.0,0.070749]
[1764858066679,0.40746,92680.0,92679.0,0.070749]
[1764858066876,0.38413,92680.0,92679.0,0.070749]
[1764858067076,0.40746,92680.0,92679.0,0.070749]
[1764858071586,0.04666,92680.0,92679.0,0.070749]
[1764858071980,0.3608,92685.0,92684.0,0.0658984]
[1764858072580,0.38413,92685.0,92684.0,0.0658984]
[1764858072780,0.40746,92685.0,92684.0,0.0658984]
[1764858073184,0.40746,92685.0,92684.0,0.5658984]
[1764858074185,0.40746,92685.0,92684.0,0.5]
[1764858074488,0.40746,92685.0,92684.0,0.52781]
[1764858074886,0.40746,92685.0,92684.0,0.55511]
[1764858075490,0.40846,92685.0,92684.0,0.55511]
[1764858076184,0.40746,92685.0,92684.0,0.55511]
[1764858079689,0.4182483,92685.0,92684.0,0.55511]
[1764858082794,0.40746,92685.0,92684.0,0.55511]
[1764858082991,0.4182483,92685.0,92684.0,0.55511]
[1764858083492,0.40746,92685.0,92684.0,0.55511]
[1764858084592,0.3608,92685.0,92684.0,0.55511]
[1764858085292,0.3608,92685.0,92684.0,0.6133187]
[1764858086194,0.05863,92693.0,92692.0,0.05511]
[1764858086496,0.02333,92693.0,92692.0,0.0658975]
[1764858087888,0.02433,92693.0,92692.0,0.0658975]
[1764858088088,0.001,92693.0,92692.0,0.10466164]
[1764858088289,0.001,92693.0,92692.0,0.0658975]
[1764858088484,0.003,92693.0,92692.0,0.0658975]
[1764858088885,0.003,92693.0,92692.0,0.12402689]
[1764858089084,0.003,92693.0,92692.0,0.0658975]
[1764858089290,0.003,92693.0,92692.0,0.5658975]
[1764858089700,0.04966,92693.0,92692.0,0.5658975]
[1764858090099,0.04966,92693.0,92692.0,0.62408069]
[1764858090502,0.04966,92693.0,92692.0,0.5658975]
[1764858091194,0.04966,92693.0,92692.0,0.62407569]
[1764858092100,0.02633,92693.0,92692.0,0.62407569]
[1764858092302,0.003,92693.0,92692.0,0.62407569]
[1764858094606,0.003,92693.0,92692.0,0.62416311]
[1764858099015,0.02633,92693.0,92692.0,0.62416311]
[1764858099210,0.41046,92693.0,92692.0,0.53887607]
[1764858099513,0.41046,92693.0,92692.0,0.50008742]
[1764858099700,0.41046,92693.0,92692.0,0.52805742]
[1764858100302,0.41046,92693.0,92692.0,8.742e-05]
[1764858101412,0.55046,92693.0,92692.0,8.742e-05]
[1764858101602,0.0574484,92684.0,92683.0,0.00016183]
[1764858101807,0.0574501,92670.0,92669.0,0.03878865]
[1764858102004,0.4182501,92670.0,92668.0,0.03878865]
[1764858102204,0.0574504,92667.0,92666.0,0.09479865]
[1764858102601,0.05754702,92667.0,92666.0,0.09479865]
[1764858103112,0.05754702,92667.0,92666.0,0.05601]
[1764858104413,0.05854702,92667.0,92666.0,0.06201]
[1764858105110,0.05754702,92667.0,92666.0,0.06001]
[1764858105711,9.662e-05,92667.0,92666.0,0.06001]
[1764858106211,9.662e-05,92667.0,92666.0,0.09879865]
[1764858106413,9.662e-05,92667.0,92666.0,0.06001]
[1764858106808,9.662e-05,92667.0,92666.0,0.09874369]
[1764858107107,9.662e-05,92667.0,92666.0,0.06001]
[1764858107312,0.04917664,92667.0,92666.0,0.06001]
[1764858107913,0.40997664,92667.0,92666.0,0.03197]
[1764858108918,0.40997664,92667.0,92666.0,0.06103]
[1764858110517,0.04917664,92667.0,92666.0,0.06103]
[1764858110707,0.40997664,92667.0,92666.0,0.06103]
[1764858115423,0.42076704,92667.0,92666.0,0.06103]
[1764858117024,0.36089662,92667.0,92666.0,0.0718205]
[1764858117219,9.662e-05,92667.0,92666.0,0.0718205]
[1764858119713,9.662e-05,92667.0,92666.0,0.11055419]
[1764858119929,9.662e-05,92667.0,92666.0,0.0718205]
[1764858120128,0.00016183,92676.0,92675.0,0.0683095]
[1764858121626,0.00016183,92676.0,92675.0,0.0693095]
[1764858121823,0.02601185,92676.0,92675.0,0.0693095]
[1764858122131,0.04944185,92676.0,92675.0,0.0693095]
[1764858122725,0.04944185,92676.0,92675.0,0.05852]
[1764858122932,0.04944185,92676.0,92675.0,0.02946]
[1764858123429,0.04944185,92676.0,92675.0,0.001]
[1764858123826,0.0576499,92671.0,92670.0,0.07534]
[1764858124138,0.04928002,92671.0,92670.0,0.07534]
[1764858127231,0.04928002,92671.0,92670.0,0.07734]
[1764858129225,0.04928002,92671.0,92670.0,0.11601868]
[1764858130027,0.04686,92671.0,92670.0,0.07734]
[1764858130626,0.0576499,92671.0,92670.0,0.002]
[1764858131334,0.0576499,92671.0,92670.0,0.03123]
[1764858131634,0.0576499,92671.0,92670.0,0.07764]
[1764858135222,0.0576499,92671.0,92670.0,0.06045]
[1764858135427,0.0576499,92671.0,92670.0,0.07764]
[1764858136630,0.04686,92671.0,92670.0,0.07764]
[1764858136830,0.3608,92673.0,92670.0,0.07764]
[1764858136831,0.3608,92673.0,92670.0,0.0884299]
[1764858137035,0.38423,92673.0,92672.0,0.05845]
[1764858137234,0.3608,92673.0,92672.0,0.05845]
[1764858138239,0.3608,92673.0,92672.0,0.05945]
[1764858139938,0.3608,92673.0,92672.0,0.06045]
[1764858140240,0.3608,92673.0,92672.0,0.05945]
[1764858140542,0.3608,92673.0,92672.0,0.06245]
[1764858140841,0.3608,92673.0,92672.0,0.05945]
[1764858141043,0.3608,92673.0,92672.0,0.06145]
[1764858141232,0.00016183,92676.0,92675.0,0.05845]
[1764858141437,0.17470078,92700.0,92672.0,0.003]
[1764858141438,0.418767,92697.0,92694.0,0.01719]
[1764858141641,0.418767,92697.0,92696.0,0.069237]
[1764858142547,0.419767,92697.0,92696.0,0.069237]
[1764858143737,0.40898,92697.0,92696.0,0.069237]
[1764858144037,0.004,92697.0,92696.0,0.069237]
[1764858144645,0.41198,92697.0,92696.0,0.069237]
[1764858148147,0.41198,92697.0,92696.0,0.05845]
[1764858148837,0.0579679,92689.0,92688.0,0.12522136]
[1764858149042,0.06038792,92689.0,92688.0,0.12522136]
[1764858149244,0.06038792,92689.0,92688.0,0.0864279]
[1764858150048,0.06138792,92689.0,92688.0,0.5864279]
[1764858150949,0.04818,92689.0,92688.0,0.5864279]
[1764858151342,0.001,92689.0,92688.0,0.5864279]
[1764858151548,0.00342002,92689.0,92688.0,0.5864279]
[1764858151743,0.001,92689.0,92688.0,0.5864279]
[1764858151944,0.02701002,92689.0,92688.0,0.5864279]
[1764858152152,0.04818,92689.0,92688.0,0.5864279]
[1764858153546,0.001,92689.0,92688.0,0.5864279]
[1764858153753,0.00342002,92689.0,92688.0,0.5864279]
[1764858154062,0.02459,92689.0,92688.0,0.5864279]
[1764858154250,0.04818,92689.0,92688.0,0.5864279]
[1764858155054,0.001,92689.0,92688.0,0.5864279]
[1764858155257,0.02701002,92689.0,92688.0,0.5864279]
[1764858155559,0.05060002,92689.0,92688.0,0.5864279]
[1764858155946,0.001,92689.0,92688.0,0.5864279]
[1764858156262,0.00342002,92689.0,92688.0,0.5864279]
[1764858156551,0.001,92689.0,92688.0,0.5864279]
[1764858157258,0.02459,92689.0,92688.0,0.5864279]
[1764858159046,0.0589679,92689.0,92688.0,0.5864279]
[1764858160248,0.0589679,92689.0,92688.0,0.0864279]
[1764858164162,0.0589679,92689.0,92688.0,0.07564]
[1764858166570,0.0117879,92689.0,92688.0,0.07564]
[1764858166768,0.001,92689.0,92688.0,0.07564]
[1764858167851,0.0117879,92689.0,92688.0,0.07564]
[1764858168261,0.0353779,92689.0,92688.0,0.07564]
[1764858168464,0.0589679,92689.0,92688.0,0.07564]
[1764858169064,0.0589679,92689.0,92688.0,0.11443346]
[1764858170158,0.0589679,92689.0,92688.0,0.07564]
[1764858170757,0.0589679,92689.0,92688.0,0.1144365]
[1764858170758,0.4197679,92689.0,92688.0,0.1144365]
[1764858170959,0.4197679,92689.0,92688.0,0.05845]
[1764858171462,0.04718,92688.0,92687.0,0.00016183]
[1764858171668,0.04960002,92688.0,92687.0,0.02883183]
[1764858172460,0.04960002,92688.0,92687.0,0.05614183]
[1764858172665,0.05060002,92688.0,92687.0,0.05614183]
[1764858173867,0.05160002,92688.0,92687.0,0.05614183]
[1764858175174,0.05260002,92688.0,92687.0,0.05614183]
[1764858175364,0.05160002,92688.0,92687.0,0.05614183]
[1764858175972,0.05260002,92688.0,92687.0,0.05614183]
[1764858176570,0.05060002,92688.0,92687.0,0.06692993]
[1764858176761,0.05160002,92688.0,92687.0,0.06692993]
[1764858177872,0.05060002,92688.0,92687.0,0.06692993]
[1764858178274,0.04960002,92688.0,92687.0,0.06692993]
[1764858178469,0.05060002,92688.0,92687.0,0.06692993]
[1764858178670,0.001,92688.0,92687.0,0.06692993]
[1764858178867,0.3608,92689.0,92688.0,0.07356]
[1764858180270,0.3618,92689.0,92688.0,0.07356]
[1764858180577,0.3725879,92689.0,92688.0,0.07356]
[1764858181067,0.3618,92689.0,92688.0,0.07356]
[1764858181469,0.3725879,92689.0,92688.0,0.07356]
[1764858183278,0.3618,92689.0,92688.0,0.07356]
[1764858183577,0.3618,92689.0,92688.0,0.1123565]
[1764858183973,0.001,92689.0,92688.0,0.07356]
[1764858186666,0.001,92689.0,92688.0,0.13175019]
[1764858187470,0.001,92689.0,92688.0,0.07356]
[1764858187676,0.3608,92709.0,92704.0,0.0661961]
[1764858187677,0.010786,92705.0,92704.0,0.0661961]
[1764858187877,0.0107857,92708.0,92705.0,0.07307]
[1764858188166,0.00258185,92706.0,92705.0,0.07307]
[1764858188474,0.02717185,92706.0,92705.0,0.07307]
[1764858188676,0.04934183,92706.0,92705.0,0.07307]
[1764858189473,0.05434183,92706.0,92705.0,0.07407]
[1764858190777,0.05534183,92706.0,92705.0,0.07407]
[1764858195582,0.06612773,92706.0,92705.0,0.084856]
[1764858195976,0.05534183,92706.0,92705.0,0.084856]
[1764858196177,0.41614183,92706.0,92705.0,0.07407]
[1764858198491,0.41614183,92706.0,92705.0,0.05641]
[1764858198997,0.41614183,92706.0,92705.0,0.07407]
[1764858202187,0.41614183,92706.0,92705.0,0.001]
[1764858202389,0.0599675,92692.0,92691.0,0.05541]
[1764858202592,0.4207675,92692.0,92691.0,0.05541]
[1764858203590,0.4217675,92692.0,92691.0,0.05541]
[1764858204580,0.4227675,92692.0,92691.0,0.05541]
[1764858207388,0.0619675,92692.0,92691.0,0.05541]
[1764858207797,0.0619675,92692.0,92691.0,0.0661976]
[1764858208295,0.002,92692.0,92691.0,0.0661976]
[1764858211493,0.0353,92709.0,92704.0,0.0661961]
[1764858211701,0.3608,92716.0,92705.0,0.07307]
[1764858212285,0.0107852,92712.0,92705.0,0.07307]
[1764858212485,0.3608,92716.0,92705.0,0.07307]
[1764858212697,0.0107849,92715.0,92712.0,0.01766]
[1764858212897,0.0107849,92715.0,92714.0,0.05541]
[1764858213089,0.0373749,92715.0,92714.0,0.05541]
[1764858213291,0.0639649,92715.0,92714.0,0.05541]
[1764858213793,0.3608,92716.0,92715.0,0.05602]
[1764858215099,0.38839,92716.0,92715.0,0.05602]
[1764858216405,0.38939,92716.0,92715.0,0.05602]
[1764858216611,0.3628,92716.0,92715.0,0.05602]
[1764858219909,0.3628,92716.0,92715.0,0.0732]
[1764858221205,0.41598,92716.0,92715.0,0.0732]
[1764858221706,0.3628,92716.0,92715.0,0.0732]
[1764858221915,0.00016183,92724.0,92723.0,0.0676039]
[1764858222205,0.00026961,92726.0,92723.0,0.10631298]
[1764858222405,0.08548711,92758.0,92720.0,0.01685]
[1764858222406,0.05318,92756.0,92755.0,0.0275802]
[1764858222610,0.05318,92756.0,92755.0,0.0844002]
[1764858222803,0.05318,92756.0,92755.0,0.07362]
[1764858223207,0.05318,92756.0,92755.0,0.08554316]
[1764858223602,0.05318,92756.0,92755.0,0.09632336]
[1764858224307,0.05318,92756.0,92755.0,0.08554316]
[1764858229405,0.0639601,92756.0,92755.0,0.01192316]
[1764858229612,0.05318,92751.0,92750.0,0.07362]
[1764858229799,0.05318,92751.0,92746.0,0.02738171]
[1764858229800,0.05318,92747.0,92746.0,0.02738171]
[1764858230005,0.05560002,92747.0,92746.0,0.00016171]
[1764858230310,0.05560002,92747.0,92746.0,0.0118545]
[1764858231202,0.05560002,92747.0,92746.0,0.00016171]
[1764858231400,0.05660002,92747.0,92746.0,0.00016171]
[1764858232307,0.14290002,92747.0,92746.0,0.00016171]
[1764858232503,0.0639632,92729.0,92728.0,0.05682]
[1764858232906,0.05318,92729.0,92728.0,0.05682]
[1764858233108,0.05318,92729.0,92728.0,0.55682]
[1764858233405,0.05318,92729.0,92728.0,0.5116384]
[1764858233800,0.05318,92729.0,92728.0,0.5684584]
[1764858234003,0.05318,92729.0,92728.0,0.5792417]
[1764858234202,0.38739,92733.0,92732.0,0.05682]
[1764858234414,0.41398,92733.0,92732.0,0.05682]
[1764858237209,0.41398,92733.0,92732.0,0.05782]
[1764858238913,0.0639632,92729.0,92728.0,0.0684584]
[1764858239114,0.06638322,92729.0,92728.0,0.05682]
[1764858240317,0.06638322,92729.0,92728.0,0.01206729]
[1764858240506,0.06638322,92729.0,92728.0,0.02722]
[1764858240706,0.06638322,92729.0,92728.0,0.02822]
[1764858240901,0.06638322,92729.0,92728.0,0.001]